Cogmind - Beta 17 @@@ ROGUE MODE // 2026.08.13 @ 23:17:11 Player: Beangussy Result: Destroyed by D-53 Grenadier with Mini Grenade Launcher Performance ------------- Evolutions (0) 0 Regions Visited (2) 400 Robots Destroyed (15) 75 Value Destroyed (363) 363 Prototype IDs (1) 20 Alien Tech Used (0) 0 Bonus (14) 14 TOTAL SCORE: 872 Bonus ------- Follower Combat Kills 14 Cogmind --------- Core Integrity 0/250 Matter 187/300 Energy 250/250 System Corruption 0% Temperature Cool (0) Movement Walking (680) Ox8 Location -10/Mines Parts ------- > --- POWER (1) -------- Ion Engine > --- PROPULSION (2) --- Aluminum Leg > --- UTILITY (2) ------ Huge Storage Unit Thief Drone Bay (3/3) > --- WEAPON (2) ------- Light Assault Rifle > --- INVENTORY (25) --- Light Ion Engine Light Ion Engine Light Treads Flight Unit Improved Sensor Array Reaction Control System Light Assault Rifle Peak State ------------ > --- POWER ------------ Ion Engine > --- PROPULSION ------- Aluminum Leg Aluminum Leg > --- UTILITY ---------- Huge Storage Unit Thief Drone Bay > --- WEAPON ----------- Assault Rifle Grenade Launcher > --- INVENTORY -------- Light Ion Engine Light Ion Engine Light Treads Flight Unit Improved Sensor Array Reaction Control System Light Assault Rifle Light Assault Rifle [Rating: 14] Favorites ----------- Power Ion Engine Engine Ion Engine Propulsion Aluminum Leg Treads Light Treads Leg Aluminum Leg Utility Huge Storage Unit Device Thief Drone Bay Storage Huge Storage Unit Weapon Assault Rifle Ballistic Gun Assault Rifle Launcher Grenade Launcher Build | -11 -10 -10 ------- Run | Yrd Mat Min Slots Evolved . | . . . Power . | . . . Propulsion . | . . . Utility . | . . . Weapon . | . . . Parts Attached 13 | 6 2 5 Power 2 | 1 . 1 Engine 2 | 1 . 1 Core . | . . . Reactor . | . . . Propulsion 5 | 2 . 3 Treads 3 | 2 . 1 Leg 2 | . . 2 Wheel . | . . . Hover . | . . . Flight . | . . . Utility 3 | 1 1 1 Device 1 | . . 1 Storage 2 | 1 1 . Processor . | . . . Hackware . | . . . Protection . | . . . Artifact . | . . . Weapon 3 | 2 1 . Energy Gun . | . . . Energy Cannon . | . . . Ballistic Gun 2 | 2 . . Ballistic Cannon . | . . . Launcher 1 | . 1 . Special Weapon . | . . . Impact Weapon . | . . . Slashing Weapon . | . . . Piercing Weapon . | . . . Special Melee Weapon . | . . . Unidentified Prototypes 1 | . . 1 Parts Lost 6 | . . 6 Power 1 | . . 1 Propulsion 3 | . . 3 Utility . | . . . Weapon 2 | . . 2 Highest Loss Streak 3 | . . 3 To Critical Strikes . | . . . Average Backups 5 | 4 7 5 Power 1 | . 1 1 Propulsion 2 | 2 4 2 Utility . | . . . Weapon 1 | . 1 1 Tool/Special . | . . . Unused Backups 9 | . 1 8 Power 2 | . . 2 Propulsion 3 | . . 3 Utility 2 | . . 2 Weapon 2 | . 1 1 Tool/Special . | . . . Average Slot Usage (%) 93 | . 91 94 Engine 13 | . 14 13 Treads 8 | . 28 5 Leg 18 | . . 22 Device 5 | . . 6 Storage 17 | . 20 16 Ballistic Gun 14 | . 20 14 Launcher 12 | . 7 13 Peak Build Rating 14 | 6 7 14 Average Rating 8 | 4 6 9 On Entrance 4 | . 6 7 Avg Prop Armor Cover (%) . | . . . Naked Turns . | . . . Heaviest Build 95 | 13 95 95 Greatest Support 40 | 40 40 40 Greatest Overweight (x) 4 | . 2 4 Average Overweight (x) 2 | . . 3 Largest Inventory Capacity 25 | 8 25 25 Average Capacity 22 | 6 15 25 Most Carried 8 | 6 8 8 Average Carried 5 | 4 7 5 Final Capacity 25 | 8 25 25 Final Carried 8 | 6 8 7 Class Distribution -------------------- 100% | Mutant Dominant Class ---------------- Mutant | -10/Materials Mutant | -10/Mines Resources | -11 -10 -10 ----------- Run | Yrd Mat Min Matter Collected 400 | 211 42 147 Remotely . | . . . Salvage Created 293 | . 168 125 Parts 26 | . 14 12 Haulers Intercepted . | . . . Recyclers Shooed . | . . . Parts Field Recycled . | . . . Retrieved Matter . | . . . Parts Self-Destructed . | . . . Prevented . | . . . Parts Restored . | . . . Kills | -11 -10 -10 ------- Run | Yrd Mat Min Combat Hostiles Destroyed 13 | . 8 5 Guns 8 | . 3 5 AOE 5 | . 5 . Classes Destroyed 3 | . 3 . Watcher 2 | . 2 . Swarmer 6 | . 3 3 Grunt 7 | . 5 2 Best Kill Streak 5 | . 3 5 Combat Bots Only 5 | . 3 5 Max Kills in Single Turn 2 | . 2 1 Gunslinging 1 | . 1 . Exploded 1 | . 1 . Melee . | . . . Uniques/NPCs Destroyed . | . . . Combat | -11 -10 -10 -------- Run | Yrd Mat Min Hostile Shots Fired 98 | . 30 68 Missed 22 | . 6 16 Hits 76 | . 24 52 Projectile 76 | . 24 52 AOE 16 | . . 16 Critical Strikes 2 | . 1 1 Damage Taken 1266 | . 275 991 Core 275 | . 44 231 Absorbed by Shields . | . . . Core Remaining (%) 100 | 100 . . Volleys Fired 49 | . 15 34 Largest 2 | . 2 2 Hottest 50 | . 40 50 Shots Fired 55 | . 20 35 Gun 44 | . 10 34 Cannon . | . . . Launcher 11 | . 10 1 Special . | . . . Kinetic 44 | . 10 34 Thermal . | . . . Explosive 11 | . 10 1 Electromagnetic . | . . . Robot Hit Streak 12 | . 3 12 Robot Miss Streak 2 | . 2 2 Penetration Max . | . . . Secondary Targets 1 | . 1 . Max Gunslinging Chain 1 | . 1 . Shots Hit Robots 31 | . 11 20 Core Hits 21 | . 15 6 Critical Kills . | . . . Critical Parts Destroyed . | . . . Critical Strikes . | . . . Melee Attacks . | . . . Impact . | . . . Slashing . | . . . Piercing . | . . . Sneak Attacks . | . . . Combat Hostiles . | . . . Follow-up Attacks . | . . . Damage Inflicted 818 | . 534 284 Guns 298 | . 53 245 Cannons . | . . . Explosions 503 | . 481 22 Melee . | . . . Ramming 17 | . . 17 Kinetic 298 | . 53 245 Thermal . | . . . Explosive 503 | . 481 22 Electromagnetic . | . . . Impact . | . . . Slashing . | . . . Piercing . | . . . Highest Corruption . | . . . Average Corruption . | . . . Corruption Purged . | . . . Corruption Blocked . | . . . Overload Shots . | . . . Overflow Damage . | . . . Projectiles . | . . . Explosions . | . . . Melee . | . . . Knockbacks . | . . . Impact . | . . . Kinetic . | . . . Secondary . | . . . Self-Inflicted Damage 47 | . 47 . Shots 2 | . 2 . Rammed . | . . . Targets Rammed 2 | . . 2 Kicked 2 | . . 2 Crushed . | . . . Highest Temperature 10 | . 7 10 Average Temperature 4 | . 2 7 Received Heat Transfer 219 | . 84 135 Siege Activations . | . . . Martial Activations . | . . . Shielding Activations . | . . . Robots Disrupted . | . . . Combat Hostiles . | . . . Robots Corrupted . | . . . Combat Hostiles . | . . . Parts Fried . | . . . Impact Corruptions . | . . . Robots Melted . | . . . Combat Hostiles . | . . . Parts Melted . | . . . Heat Transferred . | . . . Parts Sabotaged . | . . . Parts Stolen . | . . . Parts Stripped . | . . . Power Chain Reactions . | . . . Alert | -11 -10 -10 ------- Run | Yrd Mat Min Maximum Alert Level . | . . . Low Security (%) 100 | 100 100 100 Level 1 . | . . . Level 2 . | . . . Level 3 . | . . . Level 4 . | . . . Level 5 . | . . . High Security . | . . . Max Security . | . . . Peak Influence 155 | . 155 120 Initial 60 | . . 60 Average 23 | . 65 18 Influence Increases 468 | . 265 203 Destroy 0b10 Robot/C 300 | . 160 140 Destroy 0b10 Robot/NC 10 | . 10 . Destroy Leader 64 | . 34 30 Allied During Kill 7 | . . 7 Disable Machine 30 | . 30 . Destroy Structure 42 | . 31 11 Lose Combat Pursuer 15 | . . 15 Influence Decreases 468 | . 110 358 Entered New Map 95 | . . 95 Time Decay 343 | . 110 233 Lost Part 30 | . . 30 Squads Dispatched 3 | . 2 1 Investigation 1 | . . 1 Extermination . | . . . Reinforcement 2 | . 2 . Assault . | . . . Garrison . | . . . Intercept . | . . . Searches Triggered . | . . . Construction Impeded . | . . . Haulers Reinforced . | . . . Active Scanning Responses . | . . . Cargo Convoy Interrupts . | . . . Stealth | -11 -10 -10 --------- Run | Yrd Mat Min Distress Signals 1 | . 1 . Communications Jammed . | . . . Distress Signals . | . . . Times Spotted 20 | . 11 9 Peak Tracking Total 4 | . 4 3 Tactical Retreats 1 | . . 1 Traps | -11 -10 -10 ------- Run | Yrd Mat Min Traps Triggered . | . . . Indirectly . | . . . Trap Hack Attempts . | . . . Triggered . | . . . Disarmed . | . . . Reprogrammed . | . . . Reused . | . . . Traps Extracted . | . . . Installed . | . . . Triggered . | . . . Machines | -11 -10 -10 ---------- Run | Yrd Mat Min Machines Disabled 2 | . 2 . Max in Single Turn 1 | . 1 . Machines Repaired . | . . . Machines Dismantled . | . . . Machines Sabotaged . | . . . Overloaded Fab Kills . | . . . Hacking | -11 -10 -10 --------- Run | Yrd Mat Min Machines Accessed 3 | . 1 2 Terminals 1 | . 1 . Fabricators . | . . . Repair Stations . | . . . Recycling Units . | . . . Scanalyzers . | . . . Garrison Access . | . . . Total Hacks 4 | . 2 2 Successful 3 | . 1 2 Failed 1 | . 1 . Catastrophic 1 | . 1 . Database Lockouts . | . . . Manual 1 | . 1 . Terminals 2 | . 2 . Fabricators . | . . . Repair Stations . | . . . Recycling Units . | . . . Scanalyzers . | . . . Garrison Access . | . . . Terminal Hacks 3 | . 1 2 Open Door 2 | . . 2 Zone Layout 1 | . 1 . Fabricator Hacks . | . . . Repair Station Hacks . | . . . Recycling Unit Hacks . | . . . Scanalyzer . | . . . Garrison Access Hacks . | . . . Unauthorized Hacks . | . . . Terminals . | . . . Fabricators . | . . . Repair Stations . | . . . Recycling Units . | . . . Scanalyzers . | . . . Garrison Access . | . . . Data Cores Recovered . | . . . Used . | . . . Hacking Detections 1 | . 1 . Full Trace Events . | . . . Feedback Events . | . . . Feedback Blocked . | . . . Robot Schematics Acquired . | . . . Robots Built . | . . . Authchips . | . . . Time . | . . . Total Robot Build Rating . | . . . Part Schematics Acquired . | . . . Parts Built . | . . . Authchips . | . . . Time . | . . . Total Part Build Rating . | . . . Part Studies Acquired . | . . . Parts Repaired . | . . . Time . | . . . Parts Recycled . | . . . Recycled Matter . | . . . Retrieved Matter . | . . . Retrieved Components . | . . . Parts Scanalyzed . | . . . Part Schematics Acquired . | . . . Parts Damaged . | . . . Bothacking | -11 -10 -10 ------------ Run | Yrd Mat Min Used RIF Installer . | . . . Robots Hacked . | . . . Non-combat . | . . . Combat . | . . . Robot Hacks Applied . | . . . Relay Couplers Released . | . . . Fabnet Peak Effective % . | . . . Robots Rewired . | . . . Allies Hacked . | . . . Hacks Repelled . | . . . Allies | -11 -10 -10 -------- Run | Yrd Mat Min Total Allies . | . . . Largest Group . | . . . Highest-Rated Group . | . . . Highest-Rated Ally . | . . . Total Orders . | . . . Ally Attacks 17 | . . 17 Total Damage 39 | . . 39 Kills 2 | . . 2 Allies Corrupted . | . . . Allies Melted . | . . . Intel | -11 -10 -10 ------- Run | Yrd Mat Min Active Infowar (turns) . | . . . Robot Analysis Total . | . . . Derelict Logs Recovered 1 | . . 1 Drone Launches 3 | . . 3 Drone Recoveries 3 | . . 3 Exploration | -11 -10 -10 ------------- Run | Yrd Mat Min Turns Passed 1814 | 118 247 1449 Spaces Moved 522 | 69 98 355 Core 8 | 8 . . Treads 232 | 61 98 73 Legs 282 | . . 282 Wheels . | . . . Hover . | . . . Flight . | . . . Fastest Speed 50 | 50 160 320 Average Speed 320 | 147 210 384 Slowest Speed 480 | 160 320 480 Overloaded Moves . | . . . Propulsion Burnouts . | . . . Robots Hopped . | . . . Potential Cave-ins . | . . . Cave-ins Triggered . | . . . Exploration Rate (%) 29 | 3 26 59 Regions Visited 2 Branch Regions 1 Pre-discovered Areas . | . . . Known Exits Taken . | . . . Unknown Exits Taken 2 | 1 1 . Scrap Searched . | . . . Spaces Dug . | . . . Terrain Destroyed 41 | . 30 11 Melee . | . . . Projectile . | . . . AOE 41 | . 30 11 Terrain Rammed . | . . . Walls Destroyed . | . . . Machines Disabled . | . . . Actions | -11 -10 -10 --------- Run | Yrd Mat Min Total 611 | 86 121 404 Wait 3 | . 3 . Move 520 | 68 97 355 Hop . | . . . Pick Up 18 | 12 3 3 Fast Attach 1 | . 1 . Attach 12 | 6 . 6 Detach 1 | . . 1 Swap 1 | . 1 . Drop 4 | . 1 3 Fire 49 | . 15 34 Melee . | . . . Ram . | . . . Kick 2 | . . 2 Crush . | . . . Escape Stasis . | . . . Rewire . | . . . Trap . | . . . Miscellaneous . | . . . Route ------- -11/Scrapyard -10/Materials -10/Mines History --------- Turn | Location | Event 4 | -11/Scrapyard | Discovered new exit (range 16) 119 | -11/Scrapyard | Entered Materials 314 | -10/Materials | Build established: Mutant 329 | -10/Materials | Discovered new exit (range 9) 366 | -10/Materials | Entered Mines 657 | -10/Mines | Lost 3 parts (1p2n) 1136 | -10/Mines | Found the Drone Emporium 1155 | -10/Mines | Found Prototype Device 1156 | -10/Mines | Identified Thief Drone Bay 1490 | -10/Mines | Met a Derelict shopkeep closing up shop 1639 | -10/Mines | Learned Materials emergency access door positions 1724 | -10/Mines | Assembled infested the area 1784 | -10/Mines | Core integrity fell below 50% 1792 | -10/Mines | Core integrity fell below 20% 1815 | -10/Mines | Destroyed by D-53 Grenadier with Mini Grenade Launcher Last Messages --------------- U-05 Engineer builds a Wall. U-05 Engineer lays Concrete. U-05 Engineer builds a Wall. D-53 Grenadier destroyed. U-05 Engineer lays Concrete. The unstable cave ceiling collapses. U-05 Engineer lays Concrete. Grenade Launcher destroyed. Assault Rifle destroyed. U-05 Engineer builds a Wall. Aluminum Leg destroyed. U-05 Engineer lays Concrete. U-05 Engineer builds a Wall. The unstable cave ceiling collapses. U-05 Engineer lays Concrete. The unstable cave ceiling collapses. U-05 Engineer lays Concrete. The unstable cave ceiling collapses. U-05 Engineer builds a Wall. The unstable cave ceiling collapses. Map ----- +----------------------------------------------------+ | | | | | | | | | | | | | | | | | | | | | | | | | ?????????????????????????????????????????????????? | | ???####??????????????????????????????????????????? | | #### ##?????????##########??????????????????????? | | # ##???????## ##?????????????????????? | | ###???### ??????????????????????? | | # ##?## ??????????????????????? | | # #?# #??????????????????????? | | ### #?# #??????????????????????? | | #### ##?# ###????????????????????? | | #X ######???# ##???????????????????? | | # #???????# ##??????????????????? | | ## #???????# #??????????????????? | | # #???????# ##??????????????????? | | # ##????????# @ d ####????????????????? | | ##??????#### ## # u # ?????????????? | | # #??????? ???# ## ?????????? | | # ##??????? ????## ##???? ?????????? | | #???????? #?????# ##???????????????????? | | #???????? #?????## #????????????????????? | | ####???????# #?????# ## #????????????????????? | | ????######## #?????## ### #????????????????????? | | ???##""## #??????# ??# #????????????????????? | | ???#" #X #?????? ??# #????????????????????? | | ???#"/ ##???? ##??# ###??????????????????? | | ####"! ##??# ??### ###????????????????? | | #"!] # #??#??## ##???????????????? | | ## ##""## #### ## """ ##??????????????? | | ?# ####### ### """ #??????????????? | | ?# #?????# ##?# #### """ #??????????????? | | ## ######## ##???????## """ #??????????????? | | ## #?## ##### #??## ##??????????????? | | ####### #??# #??# #???????????????? | | #?????# #??# #######??# ##???????????????? | | ##????# #### #????????## ##????????????????? | | #????# #?????????#### ##?????????????????? | | #????###### #????????????### #??????????????????? | | ##?????????# #??????????????# #??????????????????? | | #??????????# ###????????????# #??????????????????? | +----------------------------------------------------+ Best States ------------- Heat Dissipation 25 Energy Generation 10 Energy Capacity 250 Matter Stores 273 Matter Capacity 300 Sight Range 16 Terrain Scan Density 10 Evasion (%) 40 Recoil Reduction 2 Item Schematics ----------------- None Robot Schematics ------------------ None Fabricated ------------ Nothing Repaired ---------- Nothing Studied --------- None Alien Tech Used ----------------- None Achievements -------------- None Challenges ------------ None Game ------ Seed CompositePiercelightSaw Manual? 0 Play Time 00:12:25 Cumulative 2.9 hours Start 2026.08.13 @ 23:04:48 End 2026.08.13 @ 23:17:11 Sessions 1 Manual Loads 0 Difficulty Rogue Special Mode None Game No. 7 Rogue 2 Adventurer 5 Explorer 0 Win Type - Total 0 Types 0/0/0/0/0/0/0/0/0/0 Lore% 1 Gallery% 5 Achievement% 5 Wizard Run 0 Options --------- Layout 1 ASCII 0 Keyboard 0 Movement Mouse Keybinds 0 Fullscreen 1 Font 48/Smallcaps Map View 50x35 Zoom Use 0% Tactical HUD 0 Map Filters NONE Filters NONE Steam 1 RUN: 2f1066cb-a6a2-4d19-8069-4cb92dd28de7